[Event "Early-Titled-Tuesday-Blitz-April-02-2024"]
[Site "Chess.com"]
[Date "2024.04.02"]
[Round "6"]
[White "PIwan"]
[Black "MKlose11"]
[Result "1/2-1/2"]
[WhiteElo "2448"]
[BlackElo "2613"]
[TimeControl "180+1"]
[EndTime "9:07:38 PDT"]
[Termination "Game drawn - insufficient material"]

1. c4 {[%clk 0:02:59.2]} 1... Nf6 {[%clk 0:02:57]} 2. Nc3 {[%clk 0:02:59.4]}
2... c5 {[%clk 0:02:55.4]} 3. Nf3 {[%clk 0:02:59.3]} 3... Nc6 {[%clk 0:02:51.2]}
4. e3 {[%clk 0:02:59.6]} 4... g6 {[%clk 0:02:39]} 5. d4 {[%clk 0:02:59.4]} 5...
cxd4 {[%clk 0:02:38.5]} 6. exd4 {[%clk 0:03:00.3]} 6... d5 {[%clk 0:02:39.1]} 7.
cxd5 {[%clk 0:03:01.1]} 7... Nxd5 {[%clk 0:02:32.8]} 8. Qb3 {[%clk 0:03:01.1]}
8... Nxc3 {[%clk 0:02:15.4]} 9. Bc4 {[%clk 0:03:01]} 9... e6 {[%clk 0:02:15.7]}
10. bxc3 {[%clk 0:03:00.9]} 10... Be7 {[%clk 0:02:11.7]} 11. O-O {[%clk
0:02:50.1]} 11... Na5 {[%clk 0:02:10.8]} 12. Bb5+ {[%clk 0:02:49.2]} 12... Bd7
{[%clk 0:02:10.3]} 13. Qa4 {[%clk 0:02:49.3]} 13... Bxb5 {[%clk 0:02:05]} 14.
Qxb5+ {[%clk 0:02:50.2]} 14... Nc6 {[%clk 0:02:00.7]} 15. Qxb7 {[%clk
0:02:47.8]} 15... Rc8 {[%clk 0:02:00.8]} 16. Bh6 {[%clk 0:02:45.2]} 16... Bf8
{[%clk 0:02:00.1]} 17. Bxf8 {[%clk 0:02:04]} 17... Kxf8 {[%clk 0:01:57.9]} 18.
Rad1 {[%clk 0:01:48]} 18... Kg7 {[%clk 0:01:54.2]} 19. c4 {[%clk 0:01:46.2]}
19... Rc7 {[%clk 0:01:52]} 20. Qb2 {[%clk 0:01:43.4]} 20... Qf6 {[%clk
0:01:51.1]} 21. Qe2 {[%clk 0:01:30.1]} 21... Na5 {[%clk 0:01:44.2]} 22. Ne5
{[%clk 0:01:26.1]} 22... Rd8 {[%clk 0:01:43.8]} 23. Ng4 {[%clk 0:01:18.1]} 23...
Qf5 {[%clk 0:01:40.9]} 24. d5 {[%clk 0:00:46.1]} 24... Nxc4 {[%clk 0:01:27.6]}
25. dxe6 {[%clk 0:00:27.3]} 25... Rxd1 {[%clk 0:01:26.3]} 26. Qxd1 {[%clk
0:00:22.6]} 26... fxe6 {[%clk 0:01:15.6]} 27. Re1 {[%clk 0:00:20.7]} 27... h5
{[%clk 0:01:13.8]} 28. Qa1+ {[%clk 0:00:17.8]} 28... e5 {[%clk 0:01:12.1]} 29.
Nxe5 {[%clk 0:00:15.8]} 29... Nxe5 {[%clk 0:01:12.1]} 30. Rxe5 {[%clk
0:00:14.8]} 30... Qf6 {[%clk 0:01:07.9]} 31. Re1 {[%clk 0:00:14.5]} 31... Qxa1
{[%clk 0:01:07]} 32. Rxa1 {[%clk 0:00:15.4]} 32... Rc2 {[%clk 0:01:07]} 33. a4
{[%clk 0:00:15.5]} 33... a5 {[%clk 0:01:04.3]} 34. g3 {[%clk 0:00:13.5]} 34...
Rc4 {[%clk 0:01:04.4]} 35. Kg2 {[%clk 0:00:13.3]} 35... Kf6 {[%clk 0:01:04.9]}
36. h4 {[%clk 0:00:13.8]} 36... Ke5 {[%clk 0:01:05.3]} 37. Kf3 {[%clk
0:00:12.8]} 37... Kf5 {[%clk 0:01:04.1]} 38. Ke3 {[%clk 0:00:12.2]} 38... Kg4
{[%clk 0:01:04]} 39. Ra3 {[%clk 0:00:07.4]} 39... Rb4 {[%clk 0:01:04.1]} 40. Ke2
{[%clk 0:00:06.1]} 40... Kh3 {[%clk 0:01:03.1]} 41. Kf3 {[%clk 0:00:06.5]} 41...
Rc4 {[%clk 0:01:02.4]} 42. Ra2 {[%clk 0:00:03.5]} 42... Kh2 {[%clk 0:01:01.7]}
43. Ke3 {[%clk 0:00:02.7]} 43... Kg2 {[%clk 0:01:01.6]} 44. Kd3 {[%clk
0:00:02.4]} 44... Rb4 {[%clk 0:01:01.2]} 45. Ke3 {[%clk 0:00:01.9]} 45... Rg4
{[%clk 0:01:00.3]} 46. Kd3 {[%clk 0:00:01.6]} 46... Rb4 {[%clk 0:00:53.9]} 47.
Ke3 {[%clk 0:00:02.5]} 47... Rc4 {[%clk 0:00:54.3]} 48. Kd3 {[%clk 0:00:02.8]}
48... Rg4 {[%clk 0:00:54.1]} 49. Ke3 {[%clk 0:00:03.2]} 49... Rb4 {[%clk
0:00:54.8]} 50. Kd3 {[%clk 0:00:03.4]} 50... Rb3+ {[%clk 0:00:55.2]} 51. Ke4
{[%clk 0:00:03.5]} 51... Rb4+ {[%clk 0:00:50.2]} 52. Ke5 {[%clk 0:00:03.7]}
52... Kf3 {[%clk 0:00:50.5]} 53. Kf6 {[%clk 0:00:03.7]} 53... Rb6+ {[%clk
0:00:50.3]} 54. Kg5 {[%clk 0:00:03.7]} 54... Rd6 {[%clk 0:00:49.6]} 55. Rb2
{[%clk 0:00:03.6]} 55... Re6 {[%clk 0:00:48.1]} 56. Ra2 {[%clk 0:00:03.4]} 56...
Kg2 {[%clk 0:00:46.4]} 57. f4+ {[%clk 0:00:01.6]} 57... Kxg3 {[%clk 0:00:46.3]}
58. Rb2 {[%clk 0:00:01.6]} 58... Rc6 {[%clk 0:00:44.4]} 59. Rb3+ {[%clk
0:00:02]} 59... Kf2 {[%clk 0:00:44.4]} 60. Rb5 {[%clk 0:00:02.9]} 60... Kg3
{[%clk 0:00:40.4]} 61. Rxa5 {[%clk 0:00:02.8]} 61... Rc4 {[%clk 0:00:40.8]} 62.
f5 {[%clk 0:00:03]} 62... Rg4+ {[%clk 0:00:40.5]} 63. Kh6 {[%clk 0:00:02.9]}
63... gxf5 {[%clk 0:00:38.7]} 64. Rxf5 {[%clk 0:00:03]} 64... Rxh4 {[%clk
0:00:35.5]} 65. Rxh5 {[%clk 0:00:03.2]} 65... Rxa4 {[%clk 0:00:35]} 66. Rg5+
{[%clk 0:00:03.7]} 66... Kf4 {[%clk 0:00:34.9]} 67. Rg6 {[%clk 0:00:04.6]} 67...
Ra5 {[%clk 0:00:35.3]} 68. Rg7 {[%clk 0:00:04.9]} 68... Rf5 {[%clk 0:00:36.2]}
69. Rg6 {[%clk 0:00:05.1]} 69... Ke5 {[%clk 0:00:37]} 70. Rg7 {[%clk 0:00:05.5]}
70... Rf4 {[%clk 0:00:37.9]} 71. Rg6 {[%clk 0:00:05.9]} 71... Ke4 {[%clk
0:00:38.8]} 72. Kg7 {[%clk 0:00:06.4]} 72... Rf5 {[%clk 0:00:39.2]} 73. Rf6
{[%clk 0:00:06.8]} 73... Rxf6 {[%clk 0:00:39.5]} 74. Kxf6 {[%clk 0:00:07.7]}
1/2-1/2

[Event "Early-Titled-Tuesday-Blitz-April-02-2024"]
[Site "Chess.com"]
[Date "2024.04.02"]
[Round "6"]
[White "joksijoksi"]
[Black "Martial2008"]
[Result "1/2-1/2"]
[WhiteElo "2539"]
[BlackElo "2631"]
[TimeControl "180+1"]
[EndTime "9:07:39 PDT"]
[Termination "Game drawn by repetition"]

1. c4 {[%clk 0:03:00.9]} 1... Nf6 {[%clk 0:02:59.2]} 2. Nc3 {[%clk 0:02:59.8]}
2... e5 {[%clk 0:02:52.9]} 3. g3 {[%clk 0:02:58.9]} 3... Bb4 {[%clk 0:02:52.4]}
4. Bg2 {[%clk 0:02:58.7]} 4... O-O {[%clk 0:02:50.8]} 5. Nf3 {[%clk 0:02:58.4]}
5... e4 {[%clk 0:02:50.6]} 6. Nd4 {[%clk 0:02:57.6]} 6... Nc6 {[%clk 0:02:49.9]}
7. Nc2 {[%clk 0:02:55.3]} 7... Bxc3 {[%clk 0:02:49.7]} 8. dxc3 {[%clk
0:02:56.2]} 8... h6 {[%clk 0:02:46.5]} 9. O-O {[%clk 0:02:54.5]} 9... d6 {[%clk
0:02:43.3]} 10. h3 {[%clk 0:02:51.2]} 10... Be6 {[%clk 0:02:35.7]} 11. b3 {[%clk
0:02:50]} 11... Qd7 {[%clk 0:02:34.7]} 12. Kh2 {[%clk 0:02:47.9]} 12... a5
{[%clk 0:02:29.6]} 13. a4 {[%clk 0:02:47.3]} 13... Qe7 {[%clk 0:02:25.5]} 14.
Ne3 {[%clk 0:02:44.7]} 14... Rfe8 {[%clk 0:02:21.5]} 15. Ba3 {[%clk 0:02:44.6]}
15... b6 {[%clk 0:02:18.1]} 16. Qc2 {[%clk 0:02:42.5]} 16... Bd7 {[%clk
0:02:03.8]} 17. Nd5 {[%clk 0:02:33.5]} 17... Nxd5 {[%clk 0:01:54]} 18. cxd5
{[%clk 0:02:34.4]} 18... Ne5 {[%clk 0:01:54.4]} 19. c4 {[%clk 0:02:26.8]} 19...
Bf5 {[%clk 0:01:50.4]} 20. Qc3 {[%clk 0:02:18.7]} 20... Qf6 {[%clk 0:01:42.9]}
21. Bb2 {[%clk 0:02:18.8]} 21... h5 {[%clk 0:01:42.1]} 22. f4 {[%clk 0:02:16.1]}
22... exf3 {[%clk 0:01:36.8]} 23. exf3 {[%clk 0:02:03.9]} 23... Nd7 {[%clk
0:01:29.9]} 24. Qd2 {[%clk 0:01:55.3]} 24... Qg6 {[%clk 0:01:23.3]} 25. Rae1
{[%clk 0:01:54]} 25... Nc5 {[%clk 0:01:19.9]} 26. Rxe8+ {[%clk 0:01:40.8]} 26...
Rxe8 {[%clk 0:01:20.8]} 27. Re1 {[%clk 0:01:18.7]} 27... Rxe1 {[%clk 0:01:18]}
28. Qxe1 {[%clk 0:01:19.6]} 28... f6 {[%clk 0:01:06.5]} 29. g4 {[%clk
0:01:14.2]} 29... hxg4 {[%clk 0:01:02.8]} 30. hxg4 {[%clk 0:01:15.1]} 30... Nd3
{[%clk 0:00:58.7]} 31. Qd2 {[%clk 0:01:00.2]} 31... Nxb2 {[%clk 0:00:53.8]} 32.
Qxb2 {[%clk 0:01:01.1]} 32... Bd7 {[%clk 0:00:51.5]} 33. Qe2 {[%clk 0:00:58.5]}
33... Qe8 {[%clk 0:00:51]} 34. Qd2 {[%clk 0:00:53.9]} 34... g5 {[%clk
0:00:49.7]} 35. Kg3 {[%clk 0:00:51.4]} 35... Qe5+ {[%clk 0:00:49.5]} 36. Kf2
{[%clk 0:00:52]} 36... Kg7 {[%clk 0:00:49.4]} 37. Qe3 {[%clk 0:00:47.5]} 37...
Be8 {[%clk 0:00:48.9]} 38. Bf1 {[%clk 0:00:31.2]} 38... Bg6 {[%clk 0:00:45.5]}
39. Bd3 {[%clk 0:00:20.8]} 39... Qxe3+ {[%clk 0:00:15.7]} 40. Kxe3 {[%clk
0:00:20.5]} 40... Be8 {[%clk 0:00:02.4]} 41. Bf5 {[%clk 0:00:18.2]} 41... Kf7
{[%clk 0:00:02.7]} 42. Be6+ {[%clk 0:00:17.9]} 42... Kg7 {[%clk 0:00:03.1]} 43.
Bf5 {[%clk 0:00:18.5]} 43... Bg6 {[%clk 0:00:03.8]} 44. Bd3 {[%clk 0:00:15]}
44... Kf7 {[%clk 0:00:02.8]} 45. Be4 {[%clk 0:00:14.3]} 45... Bxe4 {[%clk
0:00:02.5]} 46. fxe4 {[%clk 0:00:13.4]} 46... Ke7 {[%clk 0:00:02.5]} 47. Kf3
{[%clk 0:00:13.6]} 47... Kd8 {[%clk 0:00:03.2]} 48. Ke3 {[%clk 0:00:14]} 48...
Kc8 {[%clk 0:00:03.9]} 49. Kd3 {[%clk 0:00:14.5]} 49... Kb7 {[%clk 0:00:04.6]}
50. Kc3 {[%clk 0:00:14.9]} 50... c6 {[%clk 0:00:05.3]} 51. Kd4 {[%clk
0:00:14.6]} 51... Kc7 {[%clk 0:00:04.2]} 52. Kc3 {[%clk 0:00:13.9]} 52... b5
{[%clk 0:00:02.9]} 53. dxc6 {[%clk 0:00:13.2]} 53... b4+ {[%clk 0:00:02.6]} 54.
Kd3 {[%clk 0:00:12.2]} 54... Kxc6 {[%clk 0:00:03.2]} 55. Ke3 {[%clk 0:00:12]}
55... Kd7 {[%clk 0:00:03.1]} 56. Kd4 {[%clk 0:00:10.5]} 56... Ke6 {[%clk
0:00:03.6]} 57. Kd3 {[%clk 0:00:10.7]} 57... Ke5 {[%clk 0:00:03.7]} 58. Ke3
{[%clk 0:00:11]} 58... Ke6 {[%clk 0:00:04.2]} 59. Kd3 {[%clk 0:00:11.2]} 59...
Ke7 {[%clk 0:00:04.7]} 60. Kd4 {[%clk 0:00:11.1]} 60... Kd8 {[%clk 0:00:04.8]}
61. Kd5 {[%clk 0:00:10.9]} 61... Kd7 {[%clk 0:00:05.3]} 62. Kd4 {[%clk
0:00:11.2]} 62... Kc6 {[%clk 0:00:05.1]} 63. Ke3 {[%clk 0:00:10.9]} 63... Kc5
{[%clk 0:00:05.7]} 64. Kd3 {[%clk 0:00:11.3]} 64... Kb6 {[%clk 0:00:06.3]} 65.
Kd4 {[%clk 0:00:11.6]} 65... Kc6 {[%clk 0:00:07]} 66. Ke3 {[%clk 0:00:11.3]}
1/2-1/2

[Event "Early-Titled-Tuesday-Blitz-April-02-2024"]
[Site "Chess.com"]
[Date "2024.04.02"]
[Round "6"]
[White "GoValya"]
[Black "Speed-O-Sonic"]
[Result "0-1"]
[WhiteElo "2231"]
[BlackElo "2439"]
[TimeControl "180+1"]
[EndTime "9:07:39 PDT"]
[Termination "Speed-O-Sonic won by resignation"]

1. Nf3 {[%clk 0:03:00.9]} 1... d5 {[%clk 0:02:57.6]} 2. g3 {[%clk 0:03:01.1]}
2... g6 {[%clk 0:02:57.1]} 3. d4 {[%clk 0:03:00.5]} 3... Bg7 {[%clk 0:02:57.5]}
4. Bg2 {[%clk 0:03:00.5]} 4... c6 {[%clk 0:02:57.7]} 5. c4 {[%clk 0:03:00.9]}
5... Nf6 {[%clk 0:02:56.3]} 6. O-O {[%clk 0:03:00.4]} 6... dxc4 {[%clk
0:02:56.6]} 7. Ne5 {[%clk 0:03:00.5]} 7... Ng4 {[%clk 0:02:56]} 8. Nf3 {[%clk
0:02:50.7]} 8... O-O {[%clk 0:02:51.7]} 9. h3 {[%clk 0:02:45.3]} 9... Nf6 {[%clk
0:02:40.8]} 10. a4 {[%clk 0:02:38.3]} 10... Na6 {[%clk 0:02:30.4]} 11. Nbd2
{[%clk 0:02:33.3]} 11... Be6 {[%clk 0:02:09.8]} 12. e3 {[%clk 0:02:28.3]} 12...
Nb4 {[%clk 0:02:07.1]} 13. Ne5 {[%clk 0:02:23.9]} 13... Nd3 {[%clk 0:01:19.8]}
14. Ndxc4 {[%clk 0:02:13.6]} 14... Nxc1 {[%clk 0:01:18.2]} 15. Rxc1 {[%clk
0:02:11]} 15... Bd5 {[%clk 0:01:18.8]} 16. f3 {[%clk 0:01:58.8]} 16... Nd7
{[%clk 0:01:17.4]} 17. Nd3 {[%clk 0:01:45.5]} 17... Nb6 {[%clk 0:01:14.7]} 18.
Nce5 {[%clk 0:01:27.8]} 18... f6 {[%clk 0:00:56.7]} 19. Ng4 {[%clk 0:01:16.4]}
19... Nc4 {[%clk 0:00:56.8]} 20. b3 {[%clk 0:01:12.1]} 20... Nd6 {[%clk
0:00:54.9]} 21. e4 {[%clk 0:01:10.5]} 21... Bf7 {[%clk 0:00:53.9]} 22. Ne3
{[%clk 0:01:03.9]} 22... Rc8 {[%clk 0:00:49.1]} 23. f4 {[%clk 0:01:01.3]} 23...
e6 {[%clk 0:00:44.9]} 24. Nc5 {[%clk 0:01:00.2]} 24... b6 {[%clk 0:00:44.3]} 25.
Nd3 {[%clk 0:00:59.3]} 25... Qd7 {[%clk 0:00:42.2]} 26. e5 {[%clk 0:00:46.5]}
26... Nf5 {[%clk 0:00:40.8]} 27. Nxf5 {[%clk 0:00:41.8]} 27... exf5 {[%clk
0:00:37.5]} 28. Nb4 {[%clk 0:00:35.9]} 28... fxe5 {[%clk 0:00:27]} 29. dxe5
{[%clk 0:00:14.4]} 29... Qxd1 {[%clk 0:00:25.3]} 30. Rfxd1 {[%clk 0:00:15.3]}
30... Bxb3 {[%clk 0:00:25.3]} 31. Rd7 {[%clk 0:00:14.8]} 31... Bxa4 {[%clk
0:00:25.4]} 32. Rxa7 {[%clk 0:00:12.5]} 32... Bb5 {[%clk 0:00:23.6]} 33. Rd1
{[%clk 0:00:10.6]} 33... Ra8 {[%clk 0:00:22.3]} 34. Rdd7 {[%clk 0:00:10.2]}
34... Rxa7 {[%clk 0:00:22.2]} 35. Rxa7 {[%clk 0:00:11.1]} 35... Rc8 {[%clk
0:00:21.1]} 36. Rb7 {[%clk 0:00:11.2]} 36... Bf8 {[%clk 0:00:21.4]} 37. Nc2
{[%clk 0:00:09.9]} 37... Rd8 {[%clk 0:00:21.5]} 38. Kh2 {[%clk 0:00:08.9]} 38...
Rd2 {[%clk 0:00:20]} 39. Ne3 {[%clk 0:00:08.6]} 39... Bc5 {[%clk 0:00:20.1]} 40.
Rb8+ {[%clk 0:00:08.7]} 40... Kg7 {[%clk 0:00:19.9]} 41. Rb7+ {[%clk 0:00:09.1]}
41... Kh6 {[%clk 0:00:20.5]} 42. g4 {[%clk 0:00:09.6]} 42... fxg4 {[%clk
0:00:18.1]} 43. hxg4 {[%clk 0:00:10]} 43... Bxe3 {[%clk 0:00:18.2]} 44. g5+
{[%clk 0:00:10.3]} 44... Kh5 {[%clk 0:00:18.5]} 45. Kg3 {[%clk 0:00:09.9]} 45...
Rxg2+ {[%clk 0:00:11.9]} 46. Kxg2 {[%clk 0:00:10.3]} 46... Bxf4 {[%clk
0:00:12.6]} 47. Rxh7+ {[%clk 0:00:07.7]} 47... Kxg5 {[%clk 0:00:11.8]} 48. e6
{[%clk 0:00:07.2]} 48... c5 {[%clk 0:00:12.2]} 49. e7 {[%clk 0:00:07.5]} 49...
Bc6+ {[%clk 0:00:12.1]} 50. Kf2 {[%clk 0:00:07.3]} 50... b5 {[%clk 0:00:12.1]}
51. Rh8 {[%clk 0:00:07.4]} 51... b4 {[%clk 0:00:10.4]} 52. Rc8 {[%clk
0:00:07.4]} 52... Ba4 {[%clk 0:00:06]} 53. Rxc5+ {[%clk 0:00:06.8]} 53... Kf6
{[%clk 0:00:05.1]} 54. Ra5 {[%clk 0:00:06.5]} 54... Be8 {[%clk 0:00:04.3]} 55.
Rb5 {[%clk 0:00:06]} 55... Bxb5 {[%clk 0:00:04.1]} 56. Kf3 {[%clk 0:00:05.4]}
56... Kxe7 {[%clk 0:00:03.7]} 57. Kxf4 {[%clk 0:00:06.3]} 57... b3 {[%clk
0:00:04.6]} 58. Kg5 {[%clk 0:00:07]} 58... b2 {[%clk 0:00:05.4]} 59. Kxg6 {[%clk
0:00:07.9]} 59... b1=Q+ {[%clk 0:00:06.3]} 60. Kg5 {[%clk 0:00:08.5]} 60... Bc4
{[%clk 0:00:06.6]} 61. Kh6 {[%clk 0:00:09.1]} 61... Qg1 {[%clk 0:00:06.5]} 62.
Kh5 {[%clk 0:00:09.3]} 62... Kf6 {[%clk 0:00:06.9]} 0-1

[Event "Early-Titled-Tuesday-Blitz-April-02-2024"]
[Site "Chess.com"]
[Date "2024.04.02"]
[Round "6"]
[White "manitodeplomo"]
[Black "BardArtem"]
[Result "0-1"]
[WhiteElo "2664"]
[BlackElo "2853"]
[TimeControl "180+1"]
[EndTime "9:07:52 PDT"]
[Termination "BardArtem won by resignation"]

1. d4 {[%clk 0:02:59.7]} 1... d5 {[%clk 0:02:58.7]} 2. c4 {[%clk 0:03:00]} 2...
e6 {[%clk 0:02:58.6]} 3. Nf3 {[%clk 0:02:59.5]} 3... Nf6 {[%clk 0:02:57.9]} 4.
Nc3 {[%clk 0:02:57.4]} 4... h6 {[%clk 0:02:54.7]} 5. g3 {[%clk 0:02:55.2]} 5...
Bd6 {[%clk 0:02:49]} 6. Bg2 {[%clk 0:02:53.5]} 6... O-O {[%clk 0:02:49.2]} 7.
O-O {[%clk 0:02:53.8]} 7... Nc6 {[%clk 0:02:48.8]} 8. e3 {[%clk 0:02:46.8]} 8...
Re8 {[%clk 0:02:42.1]} 9. b3 {[%clk 0:02:38.3]} 9... b6 {[%clk 0:02:28]} 10. Bb2
{[%clk 0:02:32.6]} 10... Ba6 {[%clk 0:02:27.6]} 11. Nd2 {[%clk 0:02:25]} 11...
Ne7 {[%clk 0:02:19.2]} 12. Nb5 {[%clk 0:02:18.3]} 12... Bxb5 {[%clk 0:02:17]}
13. cxb5 {[%clk 0:02:17.1]} 13... c6 {[%clk 0:02:16.5]} 14. bxc6 {[%clk
0:02:09.2]} 14... Nxc6 {[%clk 0:02:17.4]} 15. Qe2 {[%clk 0:02:09.2]} 15... Rc8
{[%clk 0:02:12.7]} 16. Rfc1 {[%clk 0:02:08.7]} 16... Qd7 {[%clk 0:02:12.6]} 17.
a3 {[%clk 0:02:04.2]} 17... Na5 {[%clk 0:02:06.3]} 18. b4 {[%clk 0:02:01.3]}
18... Nc6 {[%clk 0:02:02.6]} 19. Nb3 {[%clk 0:01:27.2]} 19... Qb7 {[%clk
0:01:58.3]} 20. b5 {[%clk 0:01:25.5]} 20... Ne7 {[%clk 0:01:58]} 21. a4 {[%clk
0:01:25.7]} 21... Rxc1+ {[%clk 0:01:55.3]} 22. Rxc1 {[%clk 0:01:24.7]} 22... Rc8
{[%clk 0:01:56.2]} 23. Qd1 {[%clk 0:01:01.6]} 23... Rxc1 {[%clk 0:01:39.8]} 24.
Qxc1 {[%clk 0:01:01.4]} 24... Qc8 {[%clk 0:01:40.7]} 25. Qxc8+ {[%clk
0:01:00.1]} 25... Nxc8 {[%clk 0:01:41.6]} 26. Kf1 {[%clk 0:01:00]} 26... Kf8
{[%clk 0:01:40.4]} 27. Ke2 {[%clk 0:01:00]} 27... Ke7 {[%clk 0:01:40.7]} 28. f3
{[%clk 0:00:55.4]} 28... Kd7 {[%clk 0:01:40.1]} 29. e4 {[%clk 0:00:53.9]} 29...
Bc7 {[%clk 0:01:35.4]} 30. e5 {[%clk 0:00:52.9]} 30... Ng8 {[%clk 0:01:33.1]}
31. f4 {[%clk 0:00:51.9]} 31... Bd8 {[%clk 0:01:31.7]} 32. Ba3 {[%clk
0:00:48.2]} 32... Be7 {[%clk 0:01:31.7]} 33. Bxe7 {[%clk 0:00:48.2]} 33... Ngxe7
{[%clk 0:01:24.7]} 34. g4 {[%clk 0:00:48.1]} 34... Ng6 {[%clk 0:01:15]} 35. Ke3
{[%clk 0:00:46.1]} 35... Nce7 {[%clk 0:01:12.2]} 36. Bf1 {[%clk 0:00:45.2]}
36... f5 {[%clk 0:01:09.7]} 37. exf6 {[%clk 0:00:39.4]} 37... gxf6 {[%clk
0:01:10.6]} 38. Bd3 {[%clk 0:00:30.3]} 38... Kd6 {[%clk 0:01:04.1]} 39. Nd2
{[%clk 0:00:24.1]} 39... e5 {[%clk 0:00:50.1]} 40. Bxg6 {[%clk 0:00:18.5]} 40...
exd4+ {[%clk 0:00:40.4]} 41. Kxd4 {[%clk 0:00:16.7]} 41... Nxg6 {[%clk
0:00:41.3]} 42. Ke3 {[%clk 0:00:16.7]} 42... Kc5 {[%clk 0:00:37.2]} 43. Nf3
{[%clk 0:00:17]} 43... Kb4 {[%clk 0:00:30]} 44. Nd4 {[%clk 0:00:17]} 44... Kxa4
{[%clk 0:00:29]} 45. Nf5 {[%clk 0:00:17]} 45... Kxb5 {[%clk 0:00:25.6]} 46. Nxh6
{[%clk 0:00:15.7]} 46... Kc4 {[%clk 0:00:23.4]} 47. Ng8 {[%clk 0:00:14.5]} 47...
Kc3 {[%clk 0:00:20.8]} 48. Nxf6 {[%clk 0:00:12.7]} 48... d4+ {[%clk 0:00:21.2]}
49. Kf3 {[%clk 0:00:12.5]} 49... d3 {[%clk 0:00:14.8]} 50. Ne4+ {[%clk
0:00:12.1]} 50... Kd4 {[%clk 0:00:15.1]} 51. Nd2 {[%clk 0:00:11.5]} 51... a5
{[%clk 0:00:12.6]} 52. f5 {[%clk 0:00:09.7]} 52... Ne5+ {[%clk 0:00:10.1]} 53.
Kf4 {[%clk 0:00:09.9]} 53... a4 {[%clk 0:00:09.7]} 54. g5 {[%clk 0:00:09.9]}
54... a3 {[%clk 0:00:05.7]} 55. g6 {[%clk 0:00:09.8]} 55... Nd7 {[%clk
0:00:03.5]} 56. Kg5 {[%clk 0:00:07.2]} 56... a2 {[%clk 0:00:02.6]} 57. f6 {[%clk
0:00:05.8]} 57... Kd5 {[%clk 0:00:01.9]} 58. g7 {[%clk 0:00:05.3]} 58... a1=Q
{[%clk 0:00:02.4]} 59. g8=Q+ {[%clk 0:00:04.7]} 59... Kc6 {[%clk 0:00:02.8]} 60.
Qc4+ {[%clk 0:00:04.1]} 60... Kb7 {[%clk 0:00:03.2]} 61. Qxd3 {[%clk 0:00:04.5]}
61... Qxf6+ {[%clk 0:00:03.1]} 62. Kg4 {[%clk 0:00:04.3]} 62... Ne5+ {[%clk
0:00:03.4]} 63. Kg3 {[%clk 0:00:04.1]} 63... Nxd3 {[%clk 0:00:04.3]} 0-1

[Event "Early-Titled-Tuesday-Blitz-April-02-2024"]
[Site "Chess.com"]
[Date "2024.04.02"]
[Round "6"]
[White "tortorchess"]
[Black "ylr5000"]
[Result "0-1"]
[WhiteElo "2218"]
[BlackElo "2474"]
[TimeControl "180+1"]
[EndTime "9:07:52 PDT"]
[Termination "ylr5000 won on time"]

1. d4 {[%clk 0:03:00.9]} 1... Nf6 {[%clk 0:02:56.5]} 2. c4 {[%clk 0:03:00.8]}
2... e6 {[%clk 0:02:56.1]} 3. Nc3 {[%clk 0:03:00.9]} 3... d5 {[%clk 0:02:56]} 4.
Nf3 {[%clk 0:03:00.2]} 4... Be7 {[%clk 0:02:54.8]} 5. Bg5 {[%clk 0:02:59.4]}
5... O-O {[%clk 0:02:55.3]} 6. e3 {[%clk 0:02:59.4]} 6... h6 {[%clk 0:02:55.3]}
7. Bh4 {[%clk 0:02:59.3]} 7... Ne4 {[%clk 0:02:55.6]} 8. Bxe7 {[%clk 0:02:56.7]}
8... Qxe7 {[%clk 0:02:56.2]} 9. Bd3 {[%clk 0:02:56.4]} 9... Nxc3 {[%clk
0:02:55.8]} 10. bxc3 {[%clk 0:02:57.3]} 10... Nd7 {[%clk 0:02:52.9]} 11. O-O
{[%clk 0:02:56.9]} 11... dxc4 {[%clk 0:02:46.9]} 12. Bxc4 {[%clk 0:02:56.8]}
12... b6 {[%clk 0:02:47.5]} 13. e4 {[%clk 0:02:47.8]} 13... Bb7 {[%clk
0:02:47.8]} 14. Bd3 {[%clk 0:02:47.6]} 14... c5 {[%clk 0:02:46.4]} 15. Bc2
{[%clk 0:02:47]} 15... cxd4 {[%clk 0:02:46.1]} 16. cxd4 {[%clk 0:02:46.8]} 16...
Rac8 {[%clk 0:02:46.2]} 17. Re1 {[%clk 0:02:44.6]} 17... Rfd8 {[%clk 0:02:42]}
18. Rc1 {[%clk 0:02:38.1]} 18... Nf6 {[%clk 0:02:35.5]} 19. e5 {[%clk
0:02:36.3]} 19... Nd7 {[%clk 0:02:34.7]} 20. Qd3 {[%clk 0:02:35.8]} 20... Nf8
{[%clk 0:02:34.4]} 21. Qe3 {[%clk 0:02:26.2]} 21... Bxf3 {[%clk 0:01:42.4]} 22.
Qxf3 {[%clk 0:02:22.3]} 22... Qb4 {[%clk 0:01:42.8]} 23. Red1 {[%clk 0:02:15.3]}
23... Rxd4 {[%clk 0:01:29.8]} 24. Bh7+ {[%clk 0:02:13.5]} 24... Kxh7 {[%clk
0:01:28.8]} 25. Rxc8 {[%clk 0:02:12.4]} 25... Rxd1+ {[%clk 0:01:28.7]} 26. Qxd1
{[%clk 0:02:11.4]} 26... Ng6 {[%clk 0:01:29.4]} 27. h3 {[%clk 0:02:05.9]} 27...
Nxe5 {[%clk 0:01:28.4]} 28. Qc2+ {[%clk 0:02:04.9]} 28... f5 {[%clk 0:01:23.8]}
29. Qe2 {[%clk 0:01:36.1]} 29... Qd4 {[%clk 0:01:23.4]} 30. Rc7 {[%clk
0:01:18.7]} 30... a5 {[%clk 0:01:16.4]} 31. Re7 {[%clk 0:01:09.8]} 31... Qd6
{[%clk 0:01:15]} 32. Rb7 {[%clk 0:01:04.9]} 32... Qc6 {[%clk 0:01:12.9]} 33. Ra7
{[%clk 0:00:56.9]} 33... Qc1+ {[%clk 0:01:07]} 34. Kh2 {[%clk 0:00:56.7]} 34...
Qf4+ {[%clk 0:01:06.7]} 35. g3 {[%clk 0:00:56.7]} 35... Qd4 {[%clk 0:01:07.2]}
36. Rc7 {[%clk 0:00:41.3]} 36... a4 {[%clk 0:01:02.5]} 37. Rc2 {[%clk 0:00:39]}
37... Qd5 {[%clk 0:00:56.2]} 38. Rc3 {[%clk 0:00:37.5]} 38... Nc6 {[%clk
0:00:44.8]} 39. Rd3 {[%clk 0:00:34.7]} 39... Nd4 {[%clk 0:00:45.2]} 40. Qe3
{[%clk 0:00:30.3]} 40... e5 {[%clk 0:00:42]} 41. Kg1 {[%clk 0:00:19.8]} 41...
Qxa2 {[%clk 0:00:31.9]} 42. g4 {[%clk 0:00:14.7]} 42... Qb1+ {[%clk 0:00:13.9]}
43. Kg2 {[%clk 0:00:13]} 43... Qb5 {[%clk 0:00:13.3]} 44. gxf5 {[%clk
0:00:11.6]} 44... Qd5+ {[%clk 0:00:12.6]} 45. f3 {[%clk 0:00:10.1]} 45... Nxf5
{[%clk 0:00:11.5]} 46. Qe4 {[%clk 0:00:07.7]} 46... Qxe4 {[%clk 0:00:11.5]} 47.
fxe4 {[%clk 0:00:08.6]} 47... Nd4 {[%clk 0:00:11.8]} 48. Ra3 {[%clk 0:00:07.9]}
48... b5 {[%clk 0:00:12]} 49. Kf2 {[%clk 0:00:07.7]} 49... Nc2 {[%clk
0:00:11.1]} 50. Ra2 {[%clk 0:00:07.1]} 50... Nd4 {[%clk 0:00:10.3]} 51. Ke3
{[%clk 0:00:06.9]} 51... Kg6 {[%clk 0:00:11.1]} 52. Kd3 {[%clk 0:00:07]} 52...
Kh5 {[%clk 0:00:11.4]} 53. Kc3 {[%clk 0:00:06.4]} 53... Kh4 {[%clk 0:00:11.9]}
54. Rg2 {[%clk 0:00:04.4]} 54... g5 {[%clk 0:00:12.3]} 55. Kb4 {[%clk
0:00:01.9]} 55... Kxh3 {[%clk 0:00:12.6]} 56. Rf2 {[%clk 0:00:01.9]} 56... g4
{[%clk 0:00:11.4]} 57. Rf6 {[%clk 0:00:01.9]} 57... h5 {[%clk 0:00:11.5]} 58.
Rf2 {[%clk 0:00:01.4]} 58... g3 {[%clk 0:00:11.6]} 0-1